{"text_format":"1","workbook":"xlsx","n_sheets":1,"sheets":["Доходы"],"not_rendered":{"charts":0,"images":0,"macros":1,"external_links":0,"defined_names":21,"comments":0,"pivot_tables":0},"unopened":[],"bounds":{"document_bytes":16777216,"sheet_cells":100000,"rows_first":2000,"rows_last":500,"rows_between":2000,"halvings":0,"cell_chars":16384,"cell_head_chars":4096},"cells_cut":0,"cells_raw":0,"read":"whole","date_system":"1900"}

{"sheet":"Доходы","index":0,"n_rows":74,"n_cols":8,"rows_kept":74,"cut":false,"hidden":false,"merged":[[0,0,0,3],[1,0,1,3],[3,0,3,3],[5,1,5,3],[6,1,6,3],[9,0,9,3],[10,0,16,0],[10,1,16,1],[10,2,16,2],[10,3,16,3],[10,4,16,4],[10,5,16,5]]}
[null,null,null,null,null,null,null,"RESPPERSONS&="]
["ОТЧЕТ ОБ ИСПОЛНЕНИИ БЮДЖЕТА",null,null,null,null,"КОДЫ"]
[null,null,null,null,"  Форма по ОКУД","0503127"]
["на 01.10.2014 г.",null,null,null,"                   Дата","2014-10-01"]
[null,null,null,null,"             по ОКПО",""]
["Наименование финансового органа:","Финансовое управление администрации Кежемского района",null,null,"    Глава по БК","900"]
["Наименование публично-правового образования:","Бюджет Недокурского сельсовета Кежемского района",null,null,"по ОКТМО","04624407"]
["Периодичность: годовая"]
["Единица измерения: руб.",null,null,null,"             по ОКЕИ","383"]
["                                 1. Доходы бюджета"]
[" Наименование показателя","Код строки","Код дохода по бюджетной классификации","Утвержденные бюджетные назначения","Исполнено","Неисполненные назначения"]
[]
[]
[]
[]
[]
[]
[1,2,3,"4","5","6"]
["Доходы бюджета - всего","010","X",{"$f":"D21+D58","v":25541838.270000003},{"$f":"E21+E58","v":12368366.26},{"$f":"IF(OR(D19=\"-\",E19=D19),\"-\",D19-IF(E19=\"-\",0,E19))","v":13173472.010000004}]
["в том числе:"]
["НАЛОГОВЫЕ И НЕНАЛОГОВЫЕ ДОХОДЫ","","000 10000000000000 000",{"$f":"D22+D32+D38+D51+D55+D57+D56","v":922076},{"$f":"E22+E32+E38+E51+E55+E57+E56","v":806542.58999999985},{"$f":"IF(OR(D21=\"-\",E21=D21),\"-\",D21-IF(E21=\"-\",0,E21))","v":115533.41000000015}]
["НАЛОГИ НА ПРИБЫЛЬ, ДОХОДЫ","","182 10100000000000 000",{"$f":"D23","v":590733},{"$f":"E23","v":535392.93999999994},55340.060000000056]
["Налог на доходы физических лиц","","182 10102000010000 110",{"$f":"FIO+D28+D31","v":590733},{"$f":"E24+E28+E31","v":535392.93999999994},55340.060000000056]
["Налог на доходы физических лиц с доходов, источником которых является налоговый агент, за исключением доходов, в отношении которых исчисление и уплата налога осуществляются в соответствии со статьями 227, 2271 и 228 Налогового кодекса Российской Федерации","","182 10102010010000 110",{"$f":"D25+D26+D27","v":510000},{"$f":"E25+E26+E27","v":454661.12},55338.880000000005]
["Налог на доходы физических лиц с доходов, источником которых является налоговый агент, за исключением доходов, в отношении которых исчисление и уплата налога осуществляются в соответствии со статьями 227, 2271 и 228 Налогового кодекса Российской Федерации (сумма платежа)","","182 10102010011000 110",{"$f":"510000-15418-21669","v":472913},417575.66,{"$f":"IF(OR(D25=\"-\",E25=D25),\"-\",D25-IF(E25=\"-\",0,E25))","v":55337.340000000026}]
["Налог на доходы физических лиц с доходов, источником которых является налоговый агент, за исключением доходов, в отношении которых исчисление и уплата налога осуществляются в соответствии со статьями 227, 2271 и 228 Налогового кодекса Российской Федерации (пени и проценты по соответствующему платежу)","","182 10102010012000 110",15418,15417.26,{"$f":"IF(OR(D26=\"-\",E26=D26),\"-\",D26-IF(E26=\"-\",0,E26))","v":0.73999999999978172}]
["Налог на доходы физических лиц с доходов, источником которых является налоговый агент, за исключением доходов, в отношении которых исчисление и уплата налога осуществляются в соответствии со статьями 227, 227.1 и 228 Налогового кодекса Российской Федерации суммы денежных взысканий (штрафов) по соответствующему платежу согласно законодательству Российской Федерации)","","182 10102010013000 110",21669,21668.2,{"$f":"IF(OR(D27=\"-\",E27=D27),\"-\",D27-IF(E27=\"-\",0,E27))","v":0.7999999999992724}]
["Налог на доходы физических лиц с доходов, полученных от осуществления деятельности физическими лицами, зарегистрированными в качестве индивидуальных предпринимателей, нотариусов, занимающихся частной практикой, адвокатов, учредивших адвокатские кабинеты и других лиц, занимающихся частной практикой в соответствии со статьей 227 Налогового кодекса Российской Федерации","","182 10102020010000 110",{"$f":"D29+D30","v":80683},{"$f":"E29+E30","v":80681.820000000007},1.1799999999930151]
["Налог на доходы физических лиц с доходов, полученных от осуществления деятельности физическими лицами, зарегистрированными в качестве индивидуальных предпринимателей, нотариусов, занимающихся частной практикой, адвокатов, учредивших адвокатские кабинеты и других лиц, занимающихся частной практикой в соответствии со статьей 227 Налогового кодекса Российской Федерации (сумма платежа)","","182 10102020011000 110",80681,80680.100000000006,0.89999999999417923]
["Налог на доходы физических лиц с доходов, полученных от осуществления деятельности физическими лицами, зарегистрированными в качестве индивидуальных предпринимателей, нотариусов, занимающихся частной практикой, адвокатов, учредивших адвокатские кабинеты и других лиц, занимающихся частной практикой в соответствии со статьей 227 Налогового кодекса Российской Федерации (сумма платежа)","","182 10102020012000 110",2,1.72,{"$f":"IF(OR(D30=\"-\",E30=D30),\"-\",D30-IF(E30=\"-\",0,E30))","v":0.28000000000000003}]
["Налог на доходы физических лиц с доходов, полученных физическими лицамив соответствии со статьей 228 Налогового кодекса Российской Федерации (сумма денежныхвзысканий (штрафов) по соответствующему платежу согласно законодательству Российской Федерации)","","182 10102030013000 110",50,50,{"$f":"IF(OR(D31=\"-\",E31=D31),\"-\",D31-IF(E31=\"-\",0,E31))","v":"-"}]
["НАЛОГИ НА ТОВАРЫ (РАБОТЫ, УСЛУГИ), РЕАЛИЗУЕМЫЕ НА ТЕРРИТОРИИ РОССИЙСКОЙ ФЕДЕРАЦИИ","","100 10300000000000 000",{"$f":"D33","v":105200},{"$f":"E33","v":58370.61},46829.39]
["Акцизы по подакцизным товарам (продукции), производимым на территории Российской Федерации","","100 10302000010000 110",{"$f":"D34+D35+D36+D37","v":105200},{"$f":"E34+E35+E36+E37","v":58370.61},46829.39]
["Доходы от уплаты акцизов на дизельное топливо, зачисляемые в консолидированные бюджеты субъектов Российской Федерации","","100 10302230010000 110",38500,22168.48,16331.52]
["Доходы от уплаты акцизов на моторные масла для дизельных и (или) карбюраторных (инжекторных) двигателей, зачисляемые в консолидированные бюджеты субъектов Российской Федерации","","100 10302240010000 110",800,461.79,338.21]
["Доходы от уплаты акцизов на автомобильный бензин, производимый на территории Российской Федерации, зачисляемые в консолидированные бюджеты субъектов Российской Федерации","","100 10302250010000 110",62300,36387.06,25912.940000000002]
["Доходы от уплаты акцизов на прямогонный бензин, производимый на территории Российской Федерации, зачисляемые в консолидированные бюджеты субъектов Российской Федерации","","100 10302260010000 110",3600,-646.72,4246.72]
["НАЛОГИ НА ИМУЩЕСТВО","","182 10600000000000 000",{"$f":"D39+D43","v":54200},{"$f":"E39+E43","v":38977.08},15222.919999999998]
["Налог на имущество физических лиц","","182 10601000000000 110",{"$f":"D40","v":44000},{"$f":"E40","v":31222.87},12777.130000000001]
["Налог на имущество физических лиц, взимаемый по ставкам, применяемым к объектам налогообложения, расположенным в границах поселений","","182 10601030100000 110",{"$f":"D41+D42","v":44000},{"$f":"E41+E42","v":31222.87},12777.130000000001]
["Налог на имущество физических лиц, взимаемый по ставкам, применяемым к объектам налогообложения, расположенным в границах поселений (сумма платежа)","","182 10601030101000 110",{"$f":"46000-4396-2000","v":39604},26420.639999999999,13183.36]
["Налог на имущество физических лиц, взимаемый по ставкам, применяемым к объектам налогообложения, расположенным в границах поселений (пени, проценты)","","182 10601030102000 110",4396,4802.2299999999996,-406.22999999999956]
["Земельный налог","","182 10606000000000 110",{"$f":"D44+D47","v":10200},{"$f":"E44+E47","v":7754.2099999999991},2445.7900000000009]
["Земельный налог, взимаемый по ставкам, установленным в соответствии с подпунктом 1 пункта 1 статьи 394 Налогового кодекса Российской Федерации","","182 10606010000000 110",{"$f":"D45+D46","v":5200},{"$f":"E45+E46","v":2764.23},2435.77]
["Земельный налог, взимаемый по ставкам, установленным в соответствии с подпунктом 1 пункта 1 статьи 394 Налогового кодекса Российской Федерации и применяемым к объектам налогообложения, расположенным в границах поселений","","182 10606013101000 110",{"$f":"5200-51","v":5149},2713.23,2435.77]
["Земельный налог, взимаемый по ставкам, установленным в соответствии с подпунктом 1 пункта 1 статьи 394 Налогового кодекса Российской Федерации и применяемым к объектам налогообложения, расположенным в границах поселений","","182 10606013102000 110",51,51,{"$f":"IF(OR(D46=\"-\",E46=D46),\"-\",D46-IF(E46=\"-\",0,E46))","v":"-"}]
["Земельный налог, взимаемый по ставкам, установленным в соответствии с подпунктом 2 пункта 1 статьи 394 Налогового кодекса Российской Федерации","","182 10606020000000 110",{"$f":"D49+D48+D50","v":5000},{"$f":"E49+E48+E50","v":4989.9799999999996},10.020000000000437]
["Земельный налог, взимаемый по ставкам, установленным в соответствии с подпунктом 2 пункта 1 статьи 394 Налогового кодекса Российской Федерации и применяемым к объектам налогообложения, расположенным в границах поселений (сумма платежа (ререрасчеты, недоимка и задолженность по соответствующему платежу, в том числе по отмененному)","","182 10606023101000 110",{"$f":"5000-3000-40","v":1960},1953.35,{"$f":"IF(OR(D48=\"-\",E48=D48),\"-\",D48-IF(E48=\"-\",0,E48))","v":6.6500000000000909}]
["Земельный налог, взимаемый по ставкам, установленным в соответствии с подпунктом 2 пункта 1 статьи 394 Налогового кодекса Российской Федерации и применяемым к объектам налогообложения, расположенным в границах поселений (пени и проценты по соответствующему платежу)","","182 10606023102000 110",40,36.630000000000003,3.3699999999999974]
["Земельный налог, взимаемый по ставкам, установленным в соответствии с подпунктом 2 пункта 1 статьи 394 Налогового кодекса Российской Федерации и применяемым к объектам налогообложения, расположенным в границах поселений (пени и проценты по соответствующему платежу)","","182 10606023103000 110",3000,3000,{"$f":"IF(OR(D50=\"-\",E50=D50),\"-\",D50-IF(E50=\"-\",0,E50))","v":"-"}]
["ГОСУДАРСТВЕННАЯ ПОШЛИНА","","807 10800000000000 000",{"$f":"D52","v":6800},7100,-300]
["Государственная пошлина за совершение нотариальных действий (за исключением действий, совершаемых консульскими учреждениями Российской Федерации)","","807 10804000010000 110",6800,7100,-300]
["Государственная пошлина за совершение нотариальных действий должностными лицами органов местного самоуправления, уполномоченными в соответствии с законодательными актами Российской Федерации на совершение нотариальных действий","","807 10804020010000 110",6800,7100,-300]
["Государственная пошлина за совершение нотариальных действий должностными лицами органов местного самоуправления, уполномоченными в соответствии с законодательными актами Российской Федерации на совершение нотариальных действий (сумма платежа)","","807 10804020011000 110",6800,7100,-300]
["Доходы от использования имущества, находящегося в государственной муниципальной собственности",null,"903 11105013101000 120",3323,3907.57,-584.57000000000016]
["Прочие неналоговые доходы бюджетов поселений",null,"807 11705050100000 180",125355,{"$f":"50000+66606+8748.39","v":125354.39},0.61000000000058208]
["Средства самообложения граждан, зачисляемые в бюджеты поселений",null,"807 11714030100000 180",36465,37440,{"$f":"IF(OR(D57=\"-\",E57=D57),\"-\",D57-IF(E57=\"-\",0,E57))","v":-975}]
["БЕЗВОЗМЕЗДНЫЕ ПОСТУПЛЕНИЯ","","807 20000000000000 000",{"$f":"D59","v":24619762.270000003},{"$f":"E59","v":11561823.67},13057938.600000003]
["БЕЗВОЗМЕЗДНЫЕ ПОСТУПЛЕНИЯ ОТ ДРУГИХ БЮДЖЕТОВ БЮДЖЕТНОЙ СИСТЕМЫ РОССИЙСКОЙ ФЕДЕРАЦИИ","","807 20200000000000 000",{"$f":"D60+D65+D74++D68+D69+D70+D72+D71+D73","v":24619762.270000003},{"$f":"E60+E65+E74++E68+E69+E70+E72+E71+E73","v":11561823.67},13057938.600000003]
["Дотации бюджетам субъектов Российской Федерации и муниципальных образований","","807 20201000000000 151",{"$f":"D61+D63","v":7235502},{"$f":"E61+E63","v":4838936},2396566]
["Дотации на выравнивание бюджетной обеспеченности","","807 20201001000000 151",{"$f":"D62","v":387222},{"$f":"E62","v":293532},93690]
["Дотации бюджетам поселений на выравнивание бюджетной обеспеченности","","807 20201001100000 151",387222,293532,93690]
["Дотации бюджетам на поддержку мер по обеспечению сбалансированности бюджетов","","807 20201003000000 151",{"$f":"D64","v":6848280},{"$f":"E64","v":4545404},2302876]
["Дотации бюджетам поселений на поддержку мер по обеспечению сбалансированности бюджетов","","807 20201003100000 151",6848280,4545404,2302876]
["Субвенции бюджетам субъектов Российской Федерации и муниципальных образований",null,"807 20203000000000 151",80100,{"$f":"E66","v":60075},20025]
["Субвенции бюджетам муниципальных образований края на осуществление государственных полномочий по первичному воинскому учету на территориях, где отсутствуют военные комиссариаты, в соответствии с Федеральным законом",null,"807 20203001500000 151",80100,{"$f":"E67","v":60075},20025]
["Субвенции бюджетам муниципальных образований края на осуществление государственных полномочий по первичному воинскому учету на территориях, где отсутствуют военные комиссариаты, в соответствии с Федеральным законом",null,"807 20203001510000 151",80100,{"$f":"53400+6675","v":60075},20025]
["Иные межбюджетные трансферты на реализацию Закона края от 23 апреля 2009 года №8-3170 \"О наделении органов местного самоуправления муниципальных образований края государственными полномочиями по созданию и обеспечению деятельности административных комиссий\" на 2014 год и плановый период 2015-2016 годов",null,"807 20204999100008 151",{"$f":"2270-23","v":2247},1696,{"$f":"IF(OR(D68=\"-\",E68=D68),\"-\",D68-IF(E68=\"-\",0,E68))","v":551}]
["Межбюджетные трансферты на государственную поддержку действующих и вновь создаваемых спортивных клубов по месту жительства граждан",null,"807 20204999100036 151",356570,356570,"-"]
["Межбюджетные трансферты на переселение граждан из аварийного жилищного фонда в муниципальных образованиях Красноярского края на 2013-2015 годы",null,"807 20204999100039 151",16086496.6,6000000,10086496.6]
["Межбюджетные трансферты на  энергосбережение и повышение энергетической эффективности в Красноярском крае на 2010-2012 г. и на период до 2020 г. в части расходов на реализацию мероприятий по энергосбережению и повышению энергетической эффективности   в связи с достижением наилучших показателей в области энергосбережения",null,"807 20204999100040 151",98900,0,98900]
["Межбюджетные трансферты  на содержание автомобильных дорог общего пользования местного значения городских округов, городских и сельских поселений за счет средств дорожного фонда Красноярского края  в рамках подпрограммы  «Дороги Красноярья» государственной программы Красноярского края «Развитие транспортной системы Красноярского края» ",null,"807 20204999100042 151",394400,224000,170400]
["Межбюджетные трансферты  на подготовку генеральных планов городских и сельских поселений, на разработку проектов планировки и межевания земельных участков для жилищного строительства, формирование и постановку земельных участков на кадастровый учет в рамках подпрограммы \"Стимулирование жилищного строительства на территории Красноярского края\" государственной программы Красноярского края \"Создание условий для обеспечения доступным  и комфортным жильем граждан Красноярского края\"",null,"807 20204999100045 151",80546.67,80546.67,{"$f":"IF(OR(D73=\"-\",E73=D73),\"-\",D73-IF(E73=\"-\",0,E73))","v":"-"}]
["Межбюдетные трансферты на реализацию проектов по благоустройству территорий поселений  в рамках подпрограммы «Поддержка муниципальных проектов и мероприятий по благоустройству территорий» государственной программы Красноярского края «Содействие развитию местного самоуправления»",null,"807 20204999100046 151",285000,0,285000]